[Event "Late-Titled-Tuesday-Blitz-January-16-2024"]
[Site "Chess.com"]
[Date "2024.01.16"]
[Round "4"]
[White "vladoboch"]
[Black "ArtemDyachuk"]
[Result "0-1"]
[WhiteElo "2418"]
[BlackElo "2655"]
[TimeControl "180+1"]
[EndTime "14:38:43 PST"]
[Termination "ArtemDyachuk won by resignation"]

1. e4 {[%clk 0:03:00.9]} 1... c5 {[%clk 0:02:59.2]} 2. Nf3 {[%clk 0:03:01]} 2...
d6 {[%clk 0:02:57.9]} 3. d4 {[%clk 0:03:00.9]} 3... cxd4 {[%clk 0:02:58.8]} 4.
Nxd4 {[%clk 0:03:01.6]} 4... Nf6 {[%clk 0:02:58.9]} 5. Nc3 {[%clk 0:03:02]} 5...
a6 {[%clk 0:02:59]} 6. Be3 {[%clk 0:03:02.2]} 6... Ng4 {[%clk 0:02:55]} 7. Bc1
{[%clk 0:02:59.4]} 7... Nc6 {[%clk 0:02:54.5]} 8. f3 {[%clk 0:02:57.5]} 8... Nf6
{[%clk 0:02:53.5]} 9. Be3 {[%clk 0:02:55.7]} 9... g6 {[%clk 0:02:52.7]} 10. Qd2
{[%clk 0:02:53.6]} 10... Bg7 {[%clk 0:02:52.5]} 11. O-O-O {[%clk 0:02:52.8]}
11... O-O {[%clk 0:02:51.4]} 12. h4 {[%clk 0:02:52.7]} 12... Nxd4 {[%clk
0:02:48.9]} 13. Bxd4 {[%clk 0:02:51.8]} 13... b5 {[%clk 0:02:48.4]} 14. h5
{[%clk 0:02:42.2]} 14... b4 {[%clk 0:02:41.5]} 15. Nd5 {[%clk 0:02:37.7]} 15...
Nxd5 {[%clk 0:02:30.6]} 16. Bxg7 {[%clk 0:02:35.1]} 16... Kxg7 {[%clk
0:02:30.3]} 17. hxg6 {[%clk 0:02:04.3]} 17... hxg6 {[%clk 0:01:13.1]} 18. Qh6+
{[%clk 0:02:02]} 18... Kf6 {[%clk 0:01:13]} 19. Rxd5 {[%clk 0:01:58.7]} 19...
Ke6 {[%clk 0:01:07.2]} 20. Bc4 {[%clk 0:01:22.8]} 20... Kd7 {[%clk 0:01:04.6]}
21. e5 {[%clk 0:01:22.6]} 21... Bb7 {[%clk 0:00:49.7]} 22. Rd2 {[%clk 0:01:20]}
22... Rh8 {[%clk 0:00:34.8]} 23. Qxh8 {[%clk 0:01:11.5]} 23... Qxh8 {[%clk
0:00:35.7]} 24. Rxh8 {[%clk 0:01:11.9]} 24... Rxh8 {[%clk 0:00:36.6]} 25. Bxf7
{[%clk 0:01:05.5]} 25... Rh1+ {[%clk 0:00:35.7]} 26. Rd1 {[%clk 0:01:05.4]}
26... Rh2 {[%clk 0:00:36.6]} 27. e6+ {[%clk 0:00:51.3]} 27... Kc7 {[%clk
0:00:36]} 28. Rd4 {[%clk 0:00:36.5]} 28... Rxg2 {[%clk 0:00:33.4]} 29. Rc4+
{[%clk 0:00:28.4]} 29... Kb6 {[%clk 0:00:21.2]} 30. Rxb4+ {[%clk 0:00:28.4]}
30... Ka7 {[%clk 0:00:22.1]} 31. Rg4 {[%clk 0:00:25.2]} 31... Rf2 {[%clk
0:00:18.4]} 32. Bxg6 {[%clk 0:00:16.4]} 32... Rxf3 {[%clk 0:00:18.2]} 33. Bd3
{[%clk 0:00:15.6]} 33... Rf6 {[%clk 0:00:17.7]} 34. Bc4 {[%clk 0:00:08.6]} 34...
d5 {[%clk 0:00:17.3]} 35. Bb3 {[%clk 0:00:08.6]} 35... Rxe6 {[%clk 0:00:17.7]}
36. Rb4 {[%clk 0:00:08.7]} 36... Rd6 {[%clk 0:00:17.2]} 37. Kd2 {[%clk
0:00:08.7]} 37... a5 {[%clk 0:00:15.6]} 38. Ra4 {[%clk 0:00:06.4]} 38... Kb6
{[%clk 0:00:15.2]} 39. Rh4 {[%clk 0:00:05.7]} 39... Bc6 {[%clk 0:00:14.8]} 40.
c3 {[%clk 0:00:06.1]} 40... e5 {[%clk 0:00:14.9]} 41. Bc2 {[%clk 0:00:06.6]}
41... Kc5 {[%clk 0:00:14.9]} 42. Rh5 {[%clk 0:00:06.8]} 42... Re6 {[%clk
0:00:13.5]} 43. a3 {[%clk 0:00:05.2]} 43... Kd6 {[%clk 0:00:11.9]} 44. b4 {[%clk
0:00:05.5]} 44... axb4 {[%clk 0:00:12.8]} 45. cxb4 {[%clk 0:00:05.8]} 45... d4
{[%clk 0:00:11.4]} 46. a4 {[%clk 0:00:06.3]} 46... e4 {[%clk 0:00:11.4]} 47. b5
{[%clk 0:00:05.9]} 47... e3+ {[%clk 0:00:11]} 48. Ke2 {[%clk 0:00:05.8]} 48...
Bf3+ {[%clk 0:00:09.2]} 49. Kxf3 {[%clk 0:00:05.6]} 49... e2 {[%clk 0:00:10.1]}
50. Rh1 {[%clk 0:00:02.9]} 50... e1=Q {[%clk 0:00:09.9]} 51. Rxe1 {[%clk
0:00:03.5]} 51... Rxe1 {[%clk 0:00:10.5]} 52. Bd3 {[%clk 0:00:02.1]} 52... Re3+
{[%clk 0:00:08.8]} 53. Kf4 {[%clk 0:00:02.1]} 53... Rxd3 {[%clk 0:00:09.7]} 54.
Ke4 {[%clk 0:00:03]} 54... Rd1 {[%clk 0:00:09.3]} 0-1

[Event "Late-Titled-Tuesday-Blitz-January-16-2024"]
[Site "Chess.com"]
[Date "2024.01.16"]
[Round "4"]
[White "PawnEatingZombie"]
[Black "Nick12772"]
[Result "1-0"]
[WhiteElo "2173"]
[BlackElo "2336"]
[TimeControl "180+1"]
[EndTime "14:38:48 PST"]
[Termination "PawnEatingZombie won by checkmate"]

1. e4 {[%clk 0:02:54.3]} 1... e6 {[%clk 0:03:00.3]} 2. d4 {[%clk 0:02:51.2]}
2... d5 {[%clk 0:03:01.2]} 3. exd5 {[%clk 0:02:51.3]} 3... exd5 {[%clk
0:03:02.1]} 4. Bf4 {[%clk 0:02:51.2]} 4... Bd6 {[%clk 0:03:01.2]} 5. Qd2 {[%clk
0:02:48.4]} 5... Nf6 {[%clk 0:03:00.1]} 6. Nc3 {[%clk 0:02:48.5]} 6... O-O
{[%clk 0:02:48.5]} 7. O-O-O {[%clk 0:02:47.1]} 7... Bb4 {[%clk 0:02:48.6]} 8. f3
{[%clk 0:02:45.5]} 8... a5 {[%clk 0:02:39.4]} 9. h4 {[%clk 0:02:41.5]} 9... a4
{[%clk 0:02:39.4]} 10. a3 {[%clk 0:02:39.8]} 10... Bd6 {[%clk 0:02:30.5]} 11. g4
{[%clk 0:02:37.3]} 11... c6 {[%clk 0:02:30.2]} 12. Nh3 {[%clk 0:02:33.9]} 12...
b5 {[%clk 0:02:27.4]} 13. Bxd6 {[%clk 0:02:32.2]} 13... Qxd6 {[%clk 0:02:26.6]}
14. Qf4 {[%clk 0:02:32.2]} 14... Qxf4+ {[%clk 0:02:05.7]} 15. Nxf4 {[%clk
0:02:30.5]} 15... Re8 {[%clk 0:02:03.4]} 16. Bd3 {[%clk 0:02:11.5]} 16... Ba6
{[%clk 0:01:40.5]} 17. Rde1 {[%clk 0:02:10.6]} 17... b4 {[%clk 0:01:31]} 18.
axb4 {[%clk 0:02:08]} 18... Bxd3 {[%clk 0:01:24.8]} 19. Nxd3 {[%clk 0:02:06.8]}
19... Na6 {[%clk 0:01:23.1]} 20. Nxa4 {[%clk 0:02:00.6]} 20... Nxb4 {[%clk
0:01:19]} 21. Nxb4 {[%clk 0:01:58.7]} 21... Rxa4 {[%clk 0:01:13.3]} 22. Nxc6
{[%clk 0:01:58.4]} 22... Rea8 {[%clk 0:00:59.6]} 23. c3 {[%clk 0:01:41.2]} 23...
Nd7 {[%clk 0:00:56.1]} 24. Nb4 {[%clk 0:01:36.9]} 24... Nb6 {[%clk 0:00:53.7]}
25. Kc2 {[%clk 0:01:30.8]} 25... Rc8 {[%clk 0:00:52.6]} 26. Kb3 {[%clk
0:01:27.1]} 26... Ra7 {[%clk 0:00:38.7]} 27. Re5 {[%clk 0:01:26.4]} 27... Nc4
{[%clk 0:00:30.8]} 28. Rxd5 {[%clk 0:01:23.7]} 28... Nd2+ {[%clk 0:00:30.4]} 29.
Kc2 {[%clk 0:01:21.4]} 29... Nxf3 {[%clk 0:00:28.3]} 30. h5 {[%clk 0:01:15.2]}
30... Rb7 {[%clk 0:00:26.3]} 31. Nd3 {[%clk 0:01:09.7]} 31... h6 {[%clk
0:00:21.3]} 32. Rf1 {[%clk 0:01:06.6]} 32... Ng5 {[%clk 0:00:19.9]} 33. Rc5
{[%clk 0:00:59.4]} 33... Re8 {[%clk 0:00:17.4]} 34. Re1 {[%clk 0:00:58.9]} 34...
Rbe7 {[%clk 0:00:11.2]} 35. Rxe7 {[%clk 0:00:57.8]} 35... Rxe7 {[%clk
0:00:12.1]} 36. b4 {[%clk 0:00:56.1]} 36... Re2+ {[%clk 0:00:12.8]} 37. Kb3
{[%clk 0:00:55.8]} 37... Ne4 {[%clk 0:00:13.1]} 38. Rc7 {[%clk 0:00:52.6]} 38...
Re3 {[%clk 0:00:11.6]} 39. Ne5 {[%clk 0:00:52]} 39... Nd6 {[%clk 0:00:06.3]} 40.
Rc6 {[%clk 0:00:41.7]} 40... Nb5 {[%clk 0:00:06.1]} 41. Nd7 {[%clk 0:00:21.1]}
41... Nxd4+ {[%clk 0:00:06]} 42. Kc4 {[%clk 0:00:17.9]} 42... Nxc6 {[%clk
0:00:06.9]} 43. b5 {[%clk 0:00:18]} 43... Ne5+ {[%clk 0:00:05.1]} 44. Kd4 {[%clk
0:00:18]} 44... Nxd7 {[%clk 0:00:03.8]} 45. Kxe3 {[%clk 0:00:18.1]} 45... Kf8
{[%clk 0:00:04.3]} 46. Kd4 {[%clk 0:00:17.9]} 46... Ke7 {[%clk 0:00:05]} 47. Kd5
{[%clk 0:00:17.6]} 47... Nb6+ {[%clk 0:00:04.2]} 48. Kc6 {[%clk 0:00:17.7]}
48... Na4 {[%clk 0:00:04.9]} 49. c4 {[%clk 0:00:16.4]} 49... g6 {[%clk
0:00:04.5]} 50. c5 {[%clk 0:00:16]} 50... gxh5 {[%clk 0:00:04.2]} 51. b6 {[%clk
0:00:16.6]} 51... Nxb6 {[%clk 0:00:02.1]} 52. cxb6 {[%clk 0:00:16.4]} 52... hxg4
{[%clk 0:00:03]} 53. b7 {[%clk 0:00:16.5]} 53... g3 {[%clk 0:00:03.9]} 54. b8=Q
{[%clk 0:00:16.6]} 54... g2 {[%clk 0:00:04.8]} 55. Qh2 {[%clk 0:00:16.4]} 55...
g1=Q {[%clk 0:00:05.7]} 56. Qxg1 {[%clk 0:00:16.3]} 56... Kf6 {[%clk 0:00:06.6]}
57. Kd5 {[%clk 0:00:15.3]} 57... Kf5 {[%clk 0:00:07.1]} 58. Kd4 {[%clk
0:00:15.4]} 58... h5 {[%clk 0:00:07.4]} 59. Ke3 {[%clk 0:00:15.4]} 59... h4
{[%clk 0:00:07.5]} 60. Kf3 {[%clk 0:00:15.9]} 60... f6 {[%clk 0:00:07.2]} 61.
Qg4+ {[%clk 0:00:16.3]} 61... Ke5 {[%clk 0:00:07.1]} 62. Qxh4 {[%clk 0:00:16.9]}
62... f5 {[%clk 0:00:08]} 63. Qe7+ {[%clk 0:00:16]} 63... Kd4 {[%clk 0:00:08]}
64. Kf4 {[%clk 0:00:16.3]} 64... Kd3 {[%clk 0:00:08.2]} 65. Kxf5 {[%clk
0:00:16.4]} 65... Kd4 {[%clk 0:00:08.7]} 66. Qe5+ {[%clk 0:00:15.9]} 66... Kc4
{[%clk 0:00:09.6]} 67. Kf4 {[%clk 0:00:15.1]} 67... Kb4 {[%clk 0:00:10.5]} 68.
Qd5 {[%clk 0:00:15.4]} 68... Kc3 {[%clk 0:00:11.4]} 69. Ke3 {[%clk 0:00:14.7]}
69... Kc2 {[%clk 0:00:12.3]} 70. Qd4 {[%clk 0:00:14.6]} 70... Kc1 {[%clk
0:00:13.2]} 71. Qd3 {[%clk 0:00:13.5]} 71... Kb2 {[%clk 0:00:13.5]} 72. Qc4
{[%clk 0:00:14]} 72... Ka3 {[%clk 0:00:14.4]} 73. Qb5 {[%clk 0:00:14]} 73... Ka2
{[%clk 0:00:15]} 74. Kd3 {[%clk 0:00:14.6]} 74... Ka1 {[%clk 0:00:15.6]} 75. Kc2
{[%clk 0:00:14.3]} 75... Ka2 {[%clk 0:00:16.5]} 76. Qb2# {[%clk 0:00:14.2]} 1-0

[Event "Late-Titled-Tuesday-Blitz-January-16-2024"]
[Site "Chess.com"]
[Date "2024.01.16"]
[Round "4"]
[White "arenal72"]
[Black "Elsa167"]
[Result "0-1"]
[WhiteElo "2589"]
[BlackElo "2853"]
[TimeControl "180+1"]
[EndTime "14:38:50 PST"]
[Termination "Elsa167 won on time"]

1. Nf3 {[%clk 0:03:00.9]} 1... Nf6 {[%clk 0:02:58.7]} 2. g3 {[%clk 0:02:59.6]}
2... g6 {[%clk 0:02:57.2]} 3. Bg2 {[%clk 0:02:59.6]} 3... Bg7 {[%clk 0:02:57.9]}
4. O-O {[%clk 0:02:59.4]} 4... O-O {[%clk 0:02:58.5]} 5. d3 {[%clk 0:02:59.9]}
5... c5 {[%clk 0:02:55]} 6. e4 {[%clk 0:02:57]} 6... d6 {[%clk 0:02:52.5]} 7. c3
{[%clk 0:02:49.2]} 7... Nc6 {[%clk 0:02:52.7]} 8. Qe2 {[%clk 0:02:48.5]} 8...
Rb8 {[%clk 0:02:45.5]} 9. h3 {[%clk 0:02:44.3]} 9... e5 {[%clk 0:02:44]} 10. a4
{[%clk 0:02:39.2]} 10... Re8 {[%clk 0:02:35.2]} 11. Na3 {[%clk 0:02:34.2]} 11...
h6 {[%clk 0:02:33.5]} 12. Nc4 {[%clk 0:02:20.4]} 12... b6 {[%clk 0:02:29.6]} 13.
Rd1 {[%clk 0:02:08.4]} 13... d5 {[%clk 0:02:17.8]} 14. exd5 {[%clk 0:02:01.3]}
14... Nxd5 {[%clk 0:02:18.7]} 15. Ne3 {[%clk 0:01:58.2]} 15... Bb7 {[%clk
0:01:53.3]} 16. Nxd5 {[%clk 0:01:56]} 16... Qxd5 {[%clk 0:01:54.2]} 17. Nd2
{[%clk 0:01:50.6]} 17... Nd4 {[%clk 0:01:35.7]} 18. Qf1 {[%clk 0:01:46.8]} 18...
Qxg2+ {[%clk 0:01:27.7]} 19. Qxg2 {[%clk 0:01:47.7]} 19... Bxg2 {[%clk
0:01:28.2]} 20. Kxg2 {[%clk 0:01:45.8]} 20... Nc6 {[%clk 0:01:24.3]} 21. Nc4
{[%clk 0:01:41.3]} 21... Rbd8 {[%clk 0:01:23.8]} 22. Be3 {[%clk 0:01:36.9]}
22... Rd7 {[%clk 0:01:20.9]} 23. a5 {[%clk 0:01:33]} 23... b5 {[%clk 0:00:40.9]}
24. Na3 {[%clk 0:01:29.5]} 24... a6 {[%clk 0:00:36.7]} 25. Bxc5 {[%clk
0:01:26.9]} 25... Nxa5 {[%clk 0:00:37.1]} 26. Be3 {[%clk 0:01:06.3]} 26... Nb3
{[%clk 0:00:31]} 27. Ra2 {[%clk 0:01:06]} 27... Red8 {[%clk 0:00:30.1]} 28. Nc2
{[%clk 0:01:02.8]} 28... a5 {[%clk 0:00:24.5]} 29. Bb6 {[%clk 0:00:48.6]} 29...
Ra8 {[%clk 0:00:10.3]} 30. Na3 {[%clk 0:00:42.2]} 30... Rb7 {[%clk 0:00:08.8]}
31. Be3 {[%clk 0:00:38]} 31... a4 {[%clk 0:00:09.4]} 32. c4 {[%clk 0:00:35.1]}
32... b4 {[%clk 0:00:05.1]} 33. Nb5 {[%clk 0:00:34.6]} 33... Bf8 {[%clk
0:00:05.4]} 34. Kf3 {[%clk 0:00:23.7]} 34... Bc5 {[%clk 0:00:03.9]} 35. Bxh6
{[%clk 0:00:20.3]} 35... Rd8 {[%clk 0:00:02.2]} 36. Rxa4 {[%clk 0:00:13.7]}
36... e4+ {[%clk 0:00:02.8]} 37. Kxe4 {[%clk 0:00:09.5]} 37... f5+ {[%clk
0:00:01.4]} 38. Kf3 {[%clk 0:00:09.1]} 38... Rbd7 {[%clk 0:00:02.1]} 39. Be3
{[%clk 0:00:07.2]} 39... Rxd3 {[%clk 0:00:01.3]} 40. Rxd3 {[%clk 0:00:06.7]}
40... Rxd3 {[%clk 0:00:02.2]} 41. Ra8+ {[%clk 0:00:06.2]} 41... Kf7 {[%clk
0:00:02.1]} 42. Ke2 {[%clk 0:00:04.7]} 42... Rd7 {[%clk 0:00:02.4]} 43. Rc8
{[%clk 0:00:03.8]} 43... Bxe3 {[%clk 0:00:02.7]} 44. fxe3 {[%clk 0:00:04.3]}
44... Rd2+ {[%clk 0:00:02.1]} 45. Kf3 {[%clk 0:00:04.8]} 45... Rxb2 {[%clk
0:00:03]} 46. Rc7+ {[%clk 0:00:04.9]} 46... Ke6 {[%clk 0:00:02.8]} 47. Rc6+
{[%clk 0:00:05.4]} 47... Ke5 {[%clk 0:00:02.9]} 48. Rxg6 {[%clk 0:00:03.3]}
48... Nd2+ {[%clk 0:00:03.3]} 49. Ke2 {[%clk 0:00:03.3]} 49... Ne4+ {[%clk
0:00:03.3]} 50. Ke1 {[%clk 0:00:03.8]} 50... b3 {[%clk 0:00:02.1]} 51. Nd4
{[%clk 0:00:04.1]} 51... Nc3 {[%clk 0:00:02.1]} 52. Nf3+ {[%clk 0:00:04.4]}
52... Ke4 {[%clk 0:00:02.4]} 53. Nd2+ {[%clk 0:00:03.6]} 53... Kxe3 {[%clk
0:00:02.3]} 54. Re6+ {[%clk 0:00:03.8]} 54... Kd3 {[%clk 0:00:03]} 55. Rd6+
{[%clk 0:00:04.1]} 55... Ke3 {[%clk 0:00:03.6]} 56. Re6+ {[%clk 0:00:04.4]}
56... Ne4 {[%clk 0:00:04]} 57. c5 {[%clk 0:00:01.8]} 57... Rxd2 {[%clk
0:00:03.6]} 58. c6 {[%clk 0:00:02.3]} 58... Rc2 {[%clk 0:00:03.7]} 59. Kd1
{[%clk 0:00:01.3]} 59... Rc5 {[%clk 0:00:04.2]} 0-1

[Event "Late-Titled-Tuesday-Blitz-January-16-2024"]
[Site "Chess.com"]
[Date "2024.01.16"]
[Round "4"]
[White "Hui_Li_Macau"]
[Black "santosalberto1987"]
[Result "1/2-1/2"]
[WhiteElo "2321"]
[BlackElo "2502"]
[TimeControl "180+1"]
[EndTime "14:38:54 PST"]
[Termination "Game drawn by repetition"]

1. e4 {[%clk 0:03:00.9]} 1... e6 {[%clk 0:02:59.4]} 2. d4 {[%clk 0:03:01]} 2...
d5 {[%clk 0:02:59.8]} 3. Nd2 {[%clk 0:02:59.2]} 3... c5 {[%clk 0:02:59.5]} 4.
exd5 {[%clk 0:02:59.4]} 4... Qxd5 {[%clk 0:03:00.4]} 5. Ngf3 {[%clk 0:03:00.3]}
5... cxd4 {[%clk 0:03:00.4]} 6. Bc4 {[%clk 0:03:00.9]} 6... Qd6 {[%clk
0:03:00.9]} 7. O-O {[%clk 0:03:01.5]} 7... Nf6 {[%clk 0:03:01.3]} 8. Nb3 {[%clk
0:03:02]} 8... Nc6 {[%clk 0:03:01.8]} 9. Nbxd4 {[%clk 0:03:02.6]} 9... Nxd4
{[%clk 0:03:02.7]} 10. Nxd4 {[%clk 0:03:03.5]} 10... a6 {[%clk 0:03:02.6]} 11.
Re1 {[%clk 0:03:03.1]} 11... Qc7 {[%clk 0:03:02.5]} 12. Qe2 {[%clk 0:03:03.5]}
12... Bd7 {[%clk 0:03:01.5]} 13. Bg5 {[%clk 0:02:39.7]} 13... O-O-O {[%clk
0:02:58.6]} 14. Bh4 {[%clk 0:02:34.2]} 14... Bd6 {[%clk 0:02:56]} 15. Bg3 {[%clk
0:02:33.5]} 15... Bxg3 {[%clk 0:02:55.1]} 16. hxg3 {[%clk 0:02:33.3]} 16... Kb8
{[%clk 0:02:52.9]} 17. c3 {[%clk 0:02:26]} 17... h5 {[%clk 0:02:45.6]} 18. Qe5
{[%clk 0:02:18.9]} 18... Qxe5 {[%clk 0:02:36.2]} 19. Rxe5 {[%clk 0:02:19.8]}
19... Bc8 {[%clk 0:02:07]} 20. Rae1 {[%clk 0:01:57.6]} 20... g6 {[%clk
0:01:45.4]} 21. R5e3 {[%clk 0:01:33.7]} 21... Ng4 {[%clk 0:01:35.1]} 22. R3e2
{[%clk 0:01:17.2]} 22... e5 {[%clk 0:01:16.6]} 23. Nf3 {[%clk 0:01:12]} 23... f6
{[%clk 0:01:16.6]} 24. Nh4 {[%clk 0:01:01.9]} 24... g5 {[%clk 0:01:08.4]} 25.
Nf3 {[%clk 0:00:55.1]} 25... Bf5 {[%clk 0:01:04.2]} 26. Rd2 {[%clk 0:00:42.5]}
26... Rxd2 {[%clk 0:01:00.8]} 27. Nxd2 {[%clk 0:00:43.4]} 27... Rd8 {[%clk
0:01:00.6]} 28. Nf1 {[%clk 0:00:39.5]} 28... Bg6 {[%clk 0:00:40.4]} 29. Be2
{[%clk 0:00:36.1]} 29... Nh6 {[%clk 0:00:36.8]} 30. Rd1 {[%clk 0:00:33.2]} 30...
Rxd1 {[%clk 0:00:36.2]} 31. Bxd1 {[%clk 0:00:34.1]} 31... Nf5 {[%clk 0:00:35.4]}
32. Ne3 {[%clk 0:00:34]} 32... Nxe3 {[%clk 0:00:35.1]} 33. fxe3 {[%clk
0:00:34.9]} 33... Kc7 {[%clk 0:00:34.1]} 34. Kf2 {[%clk 0:00:35]} 34... Kd6
{[%clk 0:00:32.9]} 35. b4 {[%clk 0:00:33.9]} 35... Bf7 {[%clk 0:00:24.1]} 36. a3
{[%clk 0:00:33.4]} 36... a5 {[%clk 0:00:22.6]} 37. Bf3 {[%clk 0:00:29.6]} 37...
b6 {[%clk 0:00:20.8]} 38. Ke1 {[%clk 0:00:23.8]} 38... h4 {[%clk 0:00:20]} 39.
Kf2 {[%clk 0:00:20.5]} 39... Bd5 {[%clk 0:00:18.6]} 40. Be2 {[%clk 0:00:13.4]}
40... Be4 {[%clk 0:00:17.9]} 41. Bb5 {[%clk 0:00:10.1]} 41... hxg3+ {[%clk
0:00:14.6]} 42. Kxg3 {[%clk 0:00:10]} 42... Kd5 {[%clk 0:00:11.1]} 43. Kf2
{[%clk 0:00:10.2]} 43... Bc2 {[%clk 0:00:08.2]} 44. g3 {[%clk 0:00:08.5]} 44...
Bb3 {[%clk 0:00:07.6]} 45. Be2 {[%clk 0:00:05.3]} 45... Bc4 {[%clk 0:00:07.1]}
46. Bf3+ {[%clk 0:00:05.6]} 46... e4 {[%clk 0:00:07.5]} 47. Bd1 {[%clk
0:00:05.2]} 47... Ke5 {[%clk 0:00:05.2]} 48. Bc2 {[%clk 0:00:03.9]} 48... f5
{[%clk 0:00:05.1]} 49. Bd1 {[%clk 0:00:03.8]} 49... Be6 {[%clk 0:00:03.8]} 50.
Bc2 {[%clk 0:00:03.8]} 50... Bc4 {[%clk 0:00:03.6]} 51. Bd1 {[%clk 0:00:04.1]}
51... Kd5 {[%clk 0:00:03.7]} 52. Bc2 {[%clk 0:00:04.4]} 52... Bd3 {[%clk
0:00:04.1]} 53. Bb3+ {[%clk 0:00:04.3]} 53... Bc4 {[%clk 0:00:03]} 54. Bc2
{[%clk 0:00:04.5]} 54... Ke5 {[%clk 0:00:01.9]} 1/2-1/2

[Event "Late-Titled-Tuesday-Blitz-January-16-2024"]
[Site "Chess.com"]
[Date "2024.01.16"]
[Round "4"]
[White "MusicCityMaster"]
[Black "Pitomina-inactive"]
[Result "1-0"]
[WhiteElo "2421"]
[BlackElo "2535"]
[TimeControl "180+1"]
[EndTime "14:38:57 PST"]
[Termination "MusicCityMaster won by resignation"]

1. d4 {[%clk 0:03:00.9]} 1... Nf6 {[%clk 0:02:49.5]} 2. c4 {[%clk 0:03:00.5]}
2... d5 {[%clk 0:02:47.4]} 3. cxd5 {[%clk 0:02:58]} 3... c6 {[%clk 0:02:46.2]}
4. dxc6 {[%clk 0:02:56.1]} 4... Nxc6 {[%clk 0:02:47.1]} 5. Nf3 {[%clk 0:02:54]}
5... e5 {[%clk 0:02:44.7]} 6. e3 {[%clk 0:02:48.4]} 6... Bg4 {[%clk 0:02:39.8]}
7. Be2 {[%clk 0:02:44.7]} 7... Bb4+ {[%clk 0:02:38.9]} 8. Nc3 {[%clk 0:02:43.1]}
8... exd4 {[%clk 0:02:39.4]} 9. Nxd4 {[%clk 0:02:32]} 9... Bxe2 {[%clk
0:02:26.9]} 10. Qxe2 {[%clk 0:02:27.3]} 10... Bxc3+ {[%clk 0:02:24.5]} 11. bxc3
{[%clk 0:02:27.2]} 11... O-O {[%clk 0:02:25.4]} 12. O-O {[%clk 0:02:26.3]} 12...
Rc8 {[%clk 0:02:24.5]} 13. Rd1 {[%clk 0:02:16.5]} 13... Qa5 {[%clk 0:02:22.3]}
14. Nb3 {[%clk 0:02:07.9]} 14... Qc7 {[%clk 0:01:53]} 15. c4 {[%clk 0:02:04]}
15... Ne5 {[%clk 0:01:52.5]} 16. Bb2 {[%clk 0:01:37.9]} 16... Nxc4 {[%clk
0:01:36.5]} 17. Bxf6 {[%clk 0:01:36.9]} 17... gxf6 {[%clk 0:01:37.4]} 18. Qg4+
{[%clk 0:01:28.3]} 18... Kh8 {[%clk 0:01:36.7]} 19. Rd7 {[%clk 0:01:25.6]} 19...
Qe5 {[%clk 0:01:35.1]} 20. Rad1 {[%clk 0:01:17.5]} 20... b5 {[%clk 0:01:13.5]}
21. h3 {[%clk 0:00:55.7]} 21... a6 {[%clk 0:01:07.9]} 22. R7d5 {[%clk 0:00:48]}
22... Qe6 {[%clk 0:01:03.8]} 23. Qh4 {[%clk 0:00:35.8]} 23... Rg8 {[%clk
0:01:02.5]} 24. Rh5 {[%clk 0:00:31.1]} 24... Rg7 {[%clk 0:01:00.9]} 25. Nd4
{[%clk 0:00:30.7]} 25... Qd6 {[%clk 0:00:52.1]} 26. Rc1 {[%clk 0:00:23.6]} 26...
Rcg8 {[%clk 0:00:50.8]} 27. Kh1 {[%clk 0:00:16.5]} 27... Qa3 {[%clk 0:00:20.6]}
28. Rg1 {[%clk 0:00:16.2]} 28... Ne5 {[%clk 0:00:15.2]} 29. Nf5 {[%clk
0:00:08.5]} 29... Ng6 {[%clk 0:00:11.4]} 30. Qxf6 {[%clk 0:00:07.9]} 30... Qf8
{[%clk 0:00:05.4]} 31. Qg5 {[%clk 0:00:07.1]} 31... f6 {[%clk 0:00:04.8]} 32.
Qh6 {[%clk 0:00:06.6]} 32... Rf7 {[%clk 0:00:04.2]} 33. Qxf8 {[%clk 0:00:06.6]}
33... Rgxf8 {[%clk 0:00:04.8]} 34. Rd1 {[%clk 0:00:07]} 34... Ne5 {[%clk
0:00:04.7]} 35. Rd6 {[%clk 0:00:07.1]} 35... Nc4 {[%clk 0:00:04.5]} 36. Rxa6
{[%clk 0:00:07.2]} 36... Rd8 {[%clk 0:00:04.7]} 37. Kh2 {[%clk 0:00:07.1]} 37...
Rfd7 {[%clk 0:00:02.9]} 38. Nh6 {[%clk 0:00:07.4]} 38... Kg7 {[%clk 0:00:02.8]}
39. Ng4 {[%clk 0:00:07.6]} 39... Kg6 {[%clk 0:00:02.9]} 40. Rh6+ {[%clk
0:00:07.5]} 40... Kg7 {[%clk 0:00:02.8]} 41. Raxf6 {[%clk 0:00:07.7]} 41... Rf7
{[%clk 0:00:02.5]} 42. Rxf7+ {[%clk 0:00:08.1]} 42... Kxf7 {[%clk 0:00:03]} 43.
Rxh7+ {[%clk 0:00:08.6]} 43... Ke6 {[%clk 0:00:03.2]} 44. Rb7 {[%clk 0:00:09.2]}
44... Rd5 {[%clk 0:00:02.9]} 45. Rb6+ {[%clk 0:00:09.3]} 45... Nxb6 {[%clk
0:00:02.1]} 46. e4 {[%clk 0:00:10]} 46... Rc5 {[%clk 0:00:01.9]} 47. f4 {[%clk
0:00:10.4]} 47... Nc4 {[%clk 0:00:02.7]} 48. f5+ {[%clk 0:00:10.9]} 48... Ke7
{[%clk 0:00:02.7]} 49. f6+ {[%clk 0:00:11.4]} 49... Kf7 {[%clk 0:00:02.6]} 50.
e5 {[%clk 0:00:10.3]} 50... Nxe5 {[%clk 0:00:03.5]} 51. Ne3 {[%clk 0:00:10.2]}
51... Nc4 {[%clk 0:00:03.1]} 52. Ng4 {[%clk 0:00:10.2]} 52... Rf5 {[%clk
0:00:03.1]} 53. Kg3 {[%clk 0:00:11.1]} 53... Ne5 {[%clk 0:00:02.6]} 54. Nh6+
{[%clk 0:00:10]} 54... Kg6 {[%clk 0:00:02.7]} 55. Nxf5 {[%clk 0:00:10.9]} 55...
Kxf6 {[%clk 0:00:03.2]} 56. Ne3 {[%clk 0:00:10.6]} 56... b4 {[%clk 0:00:03.5]}
57. Kf4 {[%clk 0:00:10.5]} 57... Nd3+ {[%clk 0:00:03.8]} 58. Ke4 {[%clk
0:00:11.1]} 58... Nc1 {[%clk 0:00:04.7]} 59. Nd5+ {[%clk 0:00:10.4]} 59... Kg5
{[%clk 0:00:04.4]} 60. Nxb4 {[%clk 0:00:11.3]} 60... Kh4 {[%clk 0:00:04.8]} 61.
a4 {[%clk 0:00:11.6]} 61... Nb3 {[%clk 0:00:04.1]} 62. Kf3 {[%clk 0:00:11.4]}
62... Nd4+ {[%clk 0:00:03.8]} 63. Kf2 {[%clk 0:00:11.6]} 63... Nb3 {[%clk
0:00:04.3]} 64. Nc6 {[%clk 0:00:11.4]} 64... Kg5 {[%clk 0:00:02.9]} 65. a5
{[%clk 0:00:11.8]} 65... Nc5 {[%clk 0:00:03.7]} 66. Nb4 {[%clk 0:00:11.5]} 66...
Nd3+ {[%clk 0:00:03.5]} 67. Nxd3 {[%clk 0:00:10.8]} 1-0